bitfinex-derivatives/quotes_BNBF0:USTF0_20250908
["timestamp","ask_amount","ask_price","bid_price","bid_amount"]
[1757306044170,1.51916436,877.41,875.81,1.382]
[1757306044474,0.62633734,877.4,875.81,1.382]
[1757306044675,0.62633734,877.39,875.81,1.382]
[1757306044871,1.51916436,877.37,875.81,1.382]
[1757306045172,0.62633734,877.36,875.81,1.382]
[1757306045371,0.62633734,877.35,875.81,1.382]
[1757306045577,0.62633734,877.34,875.81,1.382]
[1757306045871,0.62633734,877.33,875.81,1.382]
[1757306046075,0.62633734,877.32,875.81,1.382]
[1757306046277,0.62633734,877.31,875.81,1.382]
[1757306046577,0.62633734,877.3,875.81,1.382]
[1757306046776,0.62633734,877.29,875.81,1.382]
[1757306046973,1.01366482,877.21,875.81,1.382]
[1757306047177,0.62633734,877.2,875.81,1.382]
[1757306047472,0.62633734,877.19,875.81,1.382]
[1757306047772,0.62633734,877.18,875.81,1.382]
[1757306047977,0.62633734,877.17,875.81,1.382]
[1757306048178,0.62633734,877.16,875.81,1.382]
[1757306048378,0.62633734,877.15,875.81,1.382]
[1757306048573,0.62633734,877.14,875.81,1.382]
[1757306048777,0.62633734,877.13,875.81,1.382]
[1757306048977,0.62633734,877.12,875.81,1.382]
[1757306049174,0.62633734,877.11,875.81,1.382]
[1757306049474,0.62633734,877.1,875.81,1.382]
[1757306049674,0.62633734,877.09,875.81,1.382]
[1757306049877,0.62633734,877.08,875.81,1.382]
[1757306050078,0.62633734,877.07,875.81,1.382]
[1757306050279,0.62633734,877.06,875.81,1.382]
[1757306050478,0.62633734,877.05,875.81,1.382]
[1757306050680,0.62633734,877.04,875.81,1.382]
[1757306050876,0.62633734,877.03,875.81,1.382]
[1757306051081,1.01366482,877.22,875.81,1.382]
[1757306051381,0.62650829,877.21,875.81,1.382]
[1757306051580,0.62650829,877.2,875.81,1.382]
[1757306051776,0.62650829,877.19,875.81,1.382]
[1757306052081,0.62650829,877.18,875.81,1.382]
[1757306052280,0.62650829,877.17,875.81,1.382]
[1757306052479,0.62650829,877.16,875.81,1.382]
[1757306052682,0.62650829,877.15,875.81,1.382]
[1757306052881,0.62650829,877.14,875.81,1.382]
[1757306053079,0.62650829,877.13,875.81,1.382]
[1757306053278,0.62650829,877.12,875.81,1.382]
[1757306053478,0.62650829,877.11,875.81,1.382]
[1757306053679,0.62650829,877.1,875.81,1.382]
[1757306053879,0.62650829,877.09,875.81,1.382]
[1757306054184,0.62650829,877.08,875.81,1.382]
[1757306054381,0.62650829,877.07,875.81,1.382]
[1757306054587,0.62650829,877.06,875.81,1.382]
[1757306054789,0.62650829,877.05,875.81,1.382]
[1757306054986,0.62650829,877.04,875.81,1.382]
[1757306055188,0.62650829,877.03,875.81,1.382]
[1757306055389,0.62650829,877.02,875.81,1.382]
[1757306055590,1.01366482,877.31,875.81,1.382]
[1757306055790,0.62626459,877.3,875.81,1.382]
[1757306056087,0.62626459,877.29,875.81,1.382]
[1757306056288,0.62626459,877.28,875.81,1.382]
[1757306056487,1.01366482,877.24,875.81,1.382]
[1757306056788,1.63992941,877.23,875.81,1.382]
[1757306056992,0.62626459,877.22,875.81,1.382]
[1757306057192,0.62626459,877.21,875.81,1.382]
[1757306057392,0.62626459,877.2,875.81,1.382]
[1757306057594,0.62626459,877.19,875.81,1.382]
[1757306057893,0.62626459,877.18,875.81,1.382]
[1757306058092,0.62626459,877.17,875.81,1.382]
[1757306058293,0.62626459,877.16,875.81,1.382]
[1757306058495,0.62626459,877.15,875.81,1.382]
[1757306058791,0.62626459,877.14,875.81,1.382]
[1757306058993,0.62626459,877.13,875.81,1.382]
[1757306059294,0.62626459,877.12,875.81,1.382]
[1757306059592,0.62626459,877.11,875.81,1.382]
[1757306059789,0.62626459,877.1,875.81,1.382]
[1757306059990,0.62626459,877.09,875.81,1.382]
[1757306060189,0.62626459,877.08,875.81,1.382]
[1757306060389,0.62626459,877.07,875.81,1.382]
[1757306060594,0.62626459,877.06,875.81,1.382]
[1757306060796,0.62626459,877.05,875.81,1.382]
[1757306060996,0.62626459,877.04,875.81,1.382]
[1757306061294,0.62626459,877.03,875.81,1.382]
[1757306061491,0.62626459,877.02,875.81,1.382]
[1757306061695,0.62626459,877.01,875.81,1.382]
[1757306061895,0.62626459,877.0,875.81,1.382]
[1757306062094,0.62626459,876.99,875.81,1.382]
[1757306062392,0.62626459,876.98,875.81,1.382]
[1757306062695,0.62626459,876.97,875.81,1.382]
[1757306062894,0.62626459,876.96,875.81,1.382]
[1757306063090,0.62626459,876.95,875.81,1.382]
[1757306063290,0.62626459,876.94,875.81,1.382]
[1757306063492,0.62626459,876.93,875.81,1.382]
[1757306063694,0.62626459,876.92,875.81,1.382]
[1757306063894,0.62626459,876.91,875.81,1.382]
[1757306064098,0.62626459,876.9,875.81,1.382]
[1757306064394,0.62626459,876.89,875.81,1.382]
[1757306064592,0.62626459,876.88,875.81,1.382]
[1757306064798,0.62626459,876.87,875.81,1.382]
[1757306065100,1.01366482,877.31,875.81,1.382]
[1757306065299,0.62574673,877.3,875.81,1.382]
[1757306065598,1.01366482,877.28,875.81,1.382]
[1757306065795,0.62574673,877.27,875.81,1.382]
[1757306065998,0.62574673,877.26,875.81,1.382]
[1757306066298,1.01366482,877.19,875.81,1.382]
[1757306066496,0.62574673,877.18,875.81,1.382]
[1757306066699,0.62574673,877.17,875.62,0.19823751]
[1757306067000,1.63941155,877.16,875.62,0.19823751]
[1757306067200,0.62574673,877.15,875.62,0.19823751]
[1757306067400,0.62574673,877.14,875.62,0.19823751]
[1757306067600,0.62574673,877.13,875.62,0.19823751]
[1757306067800,0.62574673,877.12,875.62,0.19823751]
[1757306068000,0.62574673,877.11,875.62,0.19823751]
[1757306068200,1.01366482,877.07,875.73,1.51817796]
[1757306068401,0.62574673,877.06,875.73,1.51817796]
[1757306068698,1.01366482,877.07,875.73,1.51817796]
[1757306068699,0.62574673,877.05,875.73,1.51817796]
[1757306068901,0.62574673,877.04,875.73,1.51817796]
[1757306069201,0.62574673,877.03,875.72,1.51817796]
[1757306069399,0.62574673,877.02,875.72,1.51817796]
[1757306069599,0.62574673,877.01,875.72,1.51817796]
[1757306069800,0.62574673,877.0,875.72,1.51817796]
[1757306070001,0.62574673,876.99,875.72,1.51817796]
[1757306070201,0.62574673,876.98,875.72,1.51817796]
[1757306070403,0.62574673,876.97,875.73,1.51817796]
[1757306070601,0.62574673,876.96,875.74,1.51817796]
[1757306070796,0.62574673,876.95,875.74,1.51817796]
[1757306071001,0.62574673,876.94,875.74,1.51817796]
[1757306071202,0.62574673,876.93,875.73,1.51817796]
[1757306071497,0.62574673,876.92,875.73,1.51817796]
[1757306071701,0.62574673,876.91,875.73,1.51817796]
[1757306071898,0.62574673,876.9,875.73,1.51817796]
[1757306072198,0.62574673,876.89,875.73,1.51817796]
[1757306072402,0.62574673,876.88,875.73,1.51817796]
[1757306072599,0.62574673,876.87,875.7,1.51817796]
[1757306072904,1.01366482,876.94,875.72,1.51817796]
[1757306073104,1.01366482,877.04,875.62,1.71641547]
[1757306073398,1.01366482,877.05,875.62,1.71641547]
[1757306074602,1.01366482,877.05,875.63,1.51817796]
[1757306074805,1.01366482,877.06,875.62,1.71641547]
[1757306077803,1.01366482,877.05,875.62,1.71641547]
[1757306078806,1.01366482,877.05,875.63,1.51817796]
[1757306079107,1.01366482,877.06,875.62,0.19823751]
[1757306080404,1.01366482,877.05,875.62,1.71641547]
[1757306081605,1.01366482,877.06,875.62,1.71641547]
[1757306082405,1.01366482,877.05,875.62,1.71641547]
[1757306082610,1.01366482,877.07,875.64,1.51817796]
[1757306083010,1.01366482,876.99,875.73,1.51817796]
[1757306083809,1.01366482,876.99,875.74,1.51817796]
[1757306084713,0.62490029,876.98,875.74,1.51817796]
[1757306085014,0.91229834,876.96,875.77,1.51817796]
[1757306085213,0.62490029,876.95,875.78,1.51817796]
[1757306085509,0.62490029,876.94,875.77,1.51817796]
[1757306085713,0.62490029,876.93,875.77,1.51817796]
[1757306086010,0.62490029,876.92,875.77,1.51817796]
[1757306086213,0.62490029,876.91,875.78,1.51817796]
[1757306086413,0.62490029,876.9,875.77,1.51817796]
[1757306086616,0.62490029,876.89,875.77,1.51817796]
[1757306086816,0.91229834,876.96,875.77,1.51817796]
[1757306087018,0.62381056,876.95,875.77,1.51817796]
[1757306087314,0.62381056,876.94,875.77,1.51817796]
[1757306087514,0.62381056,876.93,875.78,1.51817796]
[1757306087716,0.62381056,876.92,875.78,1.51817796]
[1757306087915,0.62381056,876.91,875.78,1.51817796]
[1757306088219,0.62381056,876.9,875.77,1.51817796]
[1757306088516,1.51916436,877.48,875.79,0.19816075]
[1757306088720,0.62386109,877.47,875.79,0.19816075]
[1757306088916,0.62386109,877.46,875.79,0.19816075]
[1757306089119,0.62386109,877.45,875.79,0.19816075]
[1757306089320,0.62386109,877.44,875.79,0.19816075]
[1757306089619,0.62386109,877.43,875.79,0.19816075]
[1757306089819,0.62386109,877.42,875.79,0.19816075]
[1757306090014,0.62386109,877.41,875.79,0.19816075]
[1757306090219,0.62386109,877.4,875.79,0.19816075]
[1757306090420,0.62386109,877.39,875.79,0.19816075]
[1757306090618,0.62386109,877.38,875.79,0.19816075]
[1757306090815,0.62386109,877.37,875.79,0.19816075]
[1757306091016,0.62386109,877.36,875.79,0.19816075]
[1757306091221,0.62386109,877.35,875.79,0.19816075]
[1757306091421,0.62386109,877.34,875.79,0.19816075]
[1757306091620,0.62386109,877.33,875.79,0.19816075]
[1757306091820,0.62386109,877.32,875.79,0.19816075]
[1757306092022,0.62386109,877.31,875.79,0.19816075]
[1757306092223,0.62386109,877.3,875.79,0.19816075]
[1757306092417,0.62386109,877.29,875.79,0.19816075]
[1757306092622,0.62386109,877.28,875.79,0.19816075]
[1757306092920,0.62386109,877.27,875.79,0.19816075]
[1757306093222,0.62386109,877.26,875.8,1.32]
[1757306093421,0.62386109,877.25,875.8,1.32]
[1757306093621,0.62386109,877.24,875.8,1.32]
[1757306093823,0.62386109,877.23,875.8,1.32]
[1757306094022,0.62386109,877.22,875.8,1.32]
[1757306094222,0.62386109,877.21,875.8,1.32]
[1757306094421,1.51916436,877.57,875.8,1.32]
[1757306094422,0.62386109,877.2,875.8,1.32]
[1757306094619,0.62386109,877.19,875.8,1.32]
[1757306094823,0.62386109,877.18,875.8,1.32]
[1757306095020,0.62386109,877.17,875.8,1.32]
[1757306095224,0.62386109,877.16,875.8,1.32]
[1757306095423,0.62386109,877.15,875.8,1.32]
[1757306095623,0.62386109,877.14,875.8,1.32]
[1757306095925,0.62386109,877.13,875.8,1.32]
[1757306096224,0.62386109,877.12,875.8,1.32]
[1757306096524,0.62386109,877.11,875.8,1.32]
[1757306096824,0.62386109,877.1,875.8,1.32]
[1757306097020,0.62386109,877.09,875.8,1.32]
[1757306097324,0.62386109,877.08,875.8,1.32]
[1757306097524,0.62386109,877.07,875.8,1.32]
[1757306097721,0.62386109,877.06,875.8,1.32]
[1757306097919,0.62386109,877.05,875.8,1.32]
[1757306098220,0.62386109,877.04,875.8,1.32]
[1757306098420,5.08316523,879.76,875.8,1.32]
[1757306098421,0.62386109,877.03,875.8,1.32]
[1757306098624,0.62386109,877.02,875.8,1.32]
[1757306098818,0.62386109,877.01,875.8,1.32]
[1757306099020,1.51916436,877.45,875.8,1.32]
[1757306099221,0.62353209,877.44,875.8,1.32]
[1757306099424,0.62353209,877.43,875.8,1.32]
[1757306099625,0.62353209,877.42,875.8,1.32]
[1757306099926,0.62353209,877.41,875.8,1.32]
[1757306100122,0.62353209,877.4,875.8,1.32]
[1757306100322,0.62353209,877.39,875.8,1.32]
[1757306100522,1.51916436,877.27,875.87,1.51817796]
[1757306100727,0.62353209,877.26,875.87,1.51817796]
[1757306100924,0.62353209,877.25,875.84,1.51817796]
[1757306101123,0.62353209,877.24,875.84,1.51817796]
[1757306101426,0.62353209,877.23,875.85,1.51817796]
[1757306101624,0.62353209,877.22,875.86,1.51817796]
[1757306101823,0.62353209,877.21,875.89,1.51817796]
[1757306102026,0.62353209,877.2,875.89,1.51817796]
[1757306102226,0.62353209,877.19,875.89,1.51817796]
[1757306102427,0.62353209,877.18,875.89,1.51817796]
[1757306102726,0.62353209,877.17,875.89,1.51817796]
[1757306102927,0.62353209,877.16,875.91,1.51817796]
[1757306103122,0.62353209,877.15,875.91,1.51817796]
[1757306103327,0.62353209,877.14,875.9,1.51817796]
[1757306103529,0.56117889,877.13,875.9,1.51817796]
[1757306103828,1.51916436,877.4,875.9,1.51817796]
[1757306104028,1.51916436,877.4,875.91,1.51817796]
[1757306104324,1.51916436,877.41,875.91,1.51817796]
[1757306105327,1.51916436,877.41,875.9,1.51817796]
[1757306105828,1.51916436,877.43,875.9,1.51817796]
[1757306106127,1.51916436,877.44,875.9,1.51817796]
[1757306106629,1.51916436,877.44,875.8,1.32]
[1757306106630,1.51916436,877.41,875.92,1.51817796]
[1757306107526,1.51916436,877.48,875.86,1.51817796]
[1757306107725,1.51916436,877.73,875.88,1.51817796]
[1757306108431,1.51916436,877.74,875.87,1.51817796]
[1757306108727,1.31916436,877.74,875.87,1.51817796]
[1757306109126,1.31916436,877.74,875.86,1.51817796]
[1757306109331,2.54158261,878.67,875.86,1.51817796]
[1757306109827,2.54158261,878.68,875.86,1.51817796]
[1757306110230,2.54158261,878.68,875.85,1.51817796]
[1757306110429,2.34158261,878.69,875.85,1.51817796]
[1757306110631,2.34158261,878.69,875.86,1.51817796]
[1757306110835,0.19807503,878.9,875.86,1.51817796]
[1757306111230,0.19807503,878.9,875.85,1.51817796]
[1757306111936,0.19807503,878.9,875.84,1.51817796]
[1757306112236,0.19807503,878.9,875.8,1.32]
[1757306112237,0.19807503,878.9,875.83,1.51817796]
[1757306112436,0.19807503,878.9,875.82,1.51817796]
[1757306112632,0.19807503,878.9,875.8,1.32]
[1757306112633,0.19807503,878.9,875.87,1.51817796]
[1757306112937,0.19807503,878.9,875.97,1.51817796]
[1757306113136,3.55821566,878.66,876.01,1.51817796]
[1757306113332,3.55821566,878.66,876.0,1.51817796]
[1757306113632,3.55821566,878.66,876.02,1.51817796]
[1757306113833,3.55821566,878.66,876.03,1.51817796]
[1757306114037,3.55821566,878.46,876.02,1.51817796]
[1757306114633,3.55821566,878.46,875.96,1.51817796]
[1757306114838,1.01017193,877.34,875.88,1.51817796]
[1757306115034,1.01017193,877.28,875.86,1.51817796]
[1757306115434,0.61540734,877.27,875.86,1.51817796]
[1757306115633,1.42557927,877.26,875.88,1.51817796]
[1757306115837,1.01017193,877.22,875.85,1.51817796]
[1757306116038,1.01017193,877.19,875.82,1.51817796]
[1757306116439,0.81017193,877.19,875.82,1.51817796]
[1757306116739,3.55821566,878.36,875.8,2.83817796]
[1757306116938,3.55821566,878.36,875.98,1.01923003]
[1757306117438,3.55821566,878.41,875.98,1.01923003]
[1757306117936,3.55821566,878.41,875.8,2.83817796]
[1757306118637,3.55821566,878.41,875.8,1.32]
[1757306119442,3.55821566,878.42,875.8,1.32]
[1757306119740,2.52521669,878.07,875.8,1.32]
[1757306121537,2.52521669,878.06,875.8,1.32]
[1757306122538,2.52521669,877.9,875.8,1.32]
[1757306123145,2.52521669,878.23,875.8,1.32]
[1757306123541,2.52521669,878.22,875.8,1.32]
[1757306126242,2.52521669,878.2,875.8,1.32]
[1757306126743,2.52521669,878.15,875.8,1.32]
[1757306127148,2.52521669,877.65,875.8,1.32]
[1757306127646,2.52521669,877.96,875.8,1.32]
[1757306127845,0.61347281,877.95,875.8,1.32]
[1757306128049,0.61347281,877.94,875.8,1.32]
[1757306128249,0.61347281,877.93,875.8,1.32]
[1757306128451,0.61347281,877.92,875.8,1.32]
[1757306128651,2.52521669,877.81,875.8,1.32]
[1757306128847,1.51520856,877.03,875.8,1.32]
[1757306129150,0.61347281,877.02,875.8,1.32]
[1757306129450,1.51520856,877.04,875.8,1.32]
[1757306129451,0.41347281,877.01,875.8,1.32]
[1757306129647,1.31520856,877.04,875.8,1.32]
[1757306130247,2.52521669,877.82,875.8,1.32]
[1757306130450,2.52521669,877.83,875.8,1.32]
[1757306131049,2.52521669,877.84,875.8,1.32]
[1757306131446,2.52521669,877.91,875.8,1.32]
[1757306131850,2.52521669,878.15,875.8,1.32]
[1757306132348,2.52521669,878.09,875.8,1.32]
[1757306132952,2.52521669,878.2,875.8,1.32]
[1757306133454,2.52521669,878.21,875.8,1.32]
[1757306134456,2.52521669,877.91,875.8,1.32]
[1757306137159,2.52521669,877.92,875.8,1.32]
[1757306137657,2.52521669,877.99,875.8,1.32]
[1757306138560,2.52521669,877.98,875.8,1.32]
[1757306140260,2.52521669,877.99,875.8,1.32]
[1757306142158,2.52521669,877.96,875.8,1.32]
[1757306142758,2.52521669,877.69,875.8,1.32]
[1757306143163,2.52521669,877.7,875.8,1.32]
[1757306143857,2.32521669,877.7,875.8,1.32]
[1757306144263,2.32521669,877.7,875.79,0.19816075]
[1757306144962,3.55821566,878.07,875.79,0.19816075]
[1757306145459,3.55821566,878.08,875.79,0.19816075]
[1757306146460,1.0071441,876.79,875.79,0.19816075]
[1757306147065,1.0071441,876.79,875.8,1.372]
[1757306147365,0.8071441,876.74,875.8,1.372]
[1757306147661,3.55821566,877.92,875.8,1.372]
[1757306148364,3.55821566,877.93,875.8,1.372]
[1757306149562,3.55821566,877.85,875.8,1.372]
[1757306149766,1.51025083,876.89,875.8,1.372]
[1757306150766,1.31025083,876.92,875.8,1.372]
[1757306151062,3.55821566,877.85,875.8,1.372]
[1757306151567,3.55821566,877.95,875.8,1.372]
[1757306152665,3.55821566,878.06,875.8,1.372]
[1757306153069,2.5165509,877.72,875.8,1.372]
[1757306155072,2.5165509,877.73,875.8,1.372]
[1757306155573,2.5165509,877.71,875.8,1.372]
[1757306156172,2.5165509,877.66,875.8,1.372]
[1757306156571,2.5165509,877.68,875.8,1.372]
[1757306157074,2.3165509,877.76,875.8,1.372]
[1757306157570,3.55821566,878.03,875.8,1.372]
[1757306157775,3.55821566,878.08,875.8,1.372]
[1757306158876,3.55821566,878.09,875.8,1.372]
[1757306160974,3.55821566,878.02,875.8,1.372]
[1757306163184,3.55821566,877.87,875.8,1.372]
[1757306164281,3.55821566,877.93,875.8,1.372]
[1757306165680,3.35821566,877.93,875.8,1.372]
[1757306166184,2.51747854,877.85,875.8,1.372]
[1757306166685,2.51747854,877.84,875.8,1.372]
[1757306167283,2.51747854,878.02,875.8,1.372]
[1757306167683,2.51747854,878.57,875.8,1.372]
[1757306167884,1.1374144,878.56,875.8,1.372]
[1757306168082,1.1374144,878.55,875.8,1.372]
[1757306168280,1.1374144,878.54,875.8,1.372]
[1757306168585,1.1374144,878.53,875.8,1.372]
[1757306168885,1.1374144,878.52,875.8,1.372]
[1757306169082,1.1374144,878.51,875.8,1.372]
[1757306169280,1.1374144,878.5,875.8,1.372]
[1757306169582,1.1374144,878.49,875.8,1.372]
[1757306169781,1.1374144,878.48,875.8,1.372]
[1757306170085,1.1374144,878.47,875.8,1.372]
[1757306170281,1.1374144,878.46,875.8,1.372]
[1757306170482,1.1374144,878.45,875.8,1.372]
[1757306170682,1.5123425,877.39,875.8,1.372]
[1757306171382,1.5123425,877.38,875.8,1.372]
[1757306171782,1.3123425,877.38,875.8,1.372]
[1757306172087,1.3123425,877.38,875.79,0.19816075]
[1757306172586,2.51747854,878.54,875.79,0.19816075]
[1757306172784,1.13741429,878.53,875.79,0.19816075]
[1757306172984,1.13741429,878.52,875.79,0.19816075]
[1757306173183,1.13741429,878.51,875.79,0.19816075]
[1757306173388,2.51747854,878.52,875.79,0.19816075]
[1757306174387,1.13741493,878.51,875.79,0.19816075]
[1757306174590,3.65489347,878.5,875.79,0.19816075]
[1757306174789,2.51747854,878.5,875.79,0.19816075]
[1757306174987,2.51747854,878.48,875.79,0.19816075]
[1757306175395,1.13743359,878.47,875.79,0.19816075]
[1757306175594,2.51747854,878.42,875.79,0.19816075]
[1757306175895,3.53327199,877.93,875.79,0.19816075]
[1757306176196,2.51747854,877.53,875.8,1.496]
[1757306177494,1.00983047,876.54,875.8,1.496]
[1757306177697,1.00983047,876.55,875.8,1.496]
[1757306179294,0.80983047,876.55,875.8,1.496]
[1757306179499,2.51747854,877.54,875.8,1.496]
[1757306179698,2.51747854,877.45,875.8,1.496]
[1757306180093,2.51747854,877.53,875.8,1.496]
[1757306180696,2.51747854,877.52,875.8,1.496]
[1757306181293,2.51747854,877.53,875.8,1.496]
[1757306181793,2.51747854,877.52,875.8,1.496]
[1757306182295,2.51747854,877.61,875.8,1.496]
[1757306182798,2.51747854,877.64,875.8,1.496]
[1757306183498,2.51747854,877.63,875.8,1.496]
[1757306185799,3.53327199,878.06,875.8,1.496]
[1757306186298,3.53327199,877.92,875.8,1.496]
[1757306187301,3.53327199,877.91,875.8,1.496]
[1757306188301,3.53327199,877.89,875.8,1.496]
[1757306190299,3.53327199,877.8,875.8,1.496]
[1757306191704,1.51590664,876.71,875.8,1.496]
[1757306192103,1.51590664,876.62,875.8,1.496]
[1757306192300,1.51590664,876.64,875.8,1.496]
[1757306192599,1.31590664,876.61,875.8,1.496]
[1757306193205,3.53327199,877.6,875.8,1.496]
[1757306193502,3.53327199,877.69,875.8,1.496]
[1757306194402,3.53327199,877.75,875.8,1.496]
[1757306194705,2.52610277,877.41,875.8,1.496]
[1757306195603,2.32610277,877.41,875.8,1.496]
[1757306195807,3.53327199,877.77,875.8,1.496]
[1757306196506,3.53327199,877.8,875.8,1.496]
[1757306197707,3.53327199,877.81,875.8,1.496]
[1757306198606,3.53327199,877.79,875.8,1.496]
[1757306199805,3.53327199,878.02,875.8,1.496]
[1757306200810,3.53327199,878.03,875.8,1.496]
[1757306202909,3.53327199,878.11,875.8,1.496]
[1757306203808,3.53327199,878.31,875.8,1.496]
[1757306204607,2.52698701,877.93,875.8,1.496]
[1757306206213,2.32698701,877.99,875.8,1.496]
[1757306209117,1.01073516,876.99,875.8,1.496]
[1757306209316,1.01073516,877.0,875.8,1.496]
[1757306209517,1.01073516,876.99,875.8,1.496]
[1757306209918,0.81073516,876.99,875.8,1.496]
[1757306210413,3.53327199,878.39,875.8,1.496]
[1757306211122,3.53327199,878.4,875.8,1.496]
[1757306212220,3.53327199,878.38,875.8,1.496]
[1757306212617,1.51603374,876.96,875.8,1.496]
[1757306213422,1.31603374,876.96,875.8,1.496]
[1757306213621,3.53327199,878.13,875.8,1.496]
[1757306214219,3.53327199,877.95,875.8,1.496]
[1757306215323,2.52666614,877.7,875.8,1.496]
[1757306215718,2.52666614,877.63,875.8,1.496]
[1757306218520,2.52666614,878.12,875.8,1.496]
[1757306219021,2.52666614,878.18,875.8,1.496]
[1757306219926,2.52666614,878.22,875.8,1.496]
[1757306220426,2.52666614,878.16,875.8,1.496]
[1757306220926,2.52666614,878.17,875.8,1.496]
[1757306221426,2.52666614,878.15,875.8,1.496]
[1757306222722,2.52666614,878.18,875.8,1.496]
[1757306223822,2.52666614,878.15,875.8,1.496]
[1757306225822,2.52666614,878.17,875.8,1.496]
[1757306226027,2.52666614,878.17,875.79,0.19816075]
[1757306227324,2.52666614,878.18,875.79,0.19816075]
[1757306228128,2.32666614,878.18,875.79,0.19816075]
[1757306228326,3.53327199,878.64,875.79,0.19816075]
[1757306228526,1.13725245,878.63,875.79,0.19816075]
[1757306228825,5.08316523,878.5,875.8,1.55]
[1757306230930,0.19807503,878.9,875.8,1.55]
[1757306231131,1.1372202,878.89,875.8,1.55]
[1757306231328,1.1372202,878.88,875.8,1.55]
[1757306231531,1.1372202,878.87,875.8,1.55]
[1757306231728,1.1372202,878.86,875.8,1.55]
[1757306232031,1.1372202,878.85,875.8,1.55]
[1757306232231,1.1372202,878.84,875.8,1.55]
[1757306232433,1.1372202,878.83,875.8,1.55]
[1757306232727,0.19807503,878.9,875.8,1.55]
[1757306232728,1.1372202,878.82,875.8,1.55]
[1757306232928,1.1372202,878.81,875.8,1.55]
[1757306233230,1.1372202,878.8,875.8,1.55]
[1757306233432,1.1372202,878.79,875.8,1.55]
[1757306233631,1.51455732,877.41,875.8,1.55]
[1757306234333,1.51455732,877.42,875.8,1.55]
[1757306234531,0.19807503,878.9,875.8,1.55]
[1757306234727,1.13712379,878.89,875.8,1.55]
[1757306234931,1.13712379,878.88,875.8,1.55]
[1757306235130,0.19807503,878.9,875.8,1.55]
[1757306235131,3.53327199,878.49,875.8,1.55]
[1757306236132,3.53327199,878.61,875.8,1.55]
[1757306237128,3.53327199,878.68,875.8,1.55]
[1757306237329,2.52258023,878.26,875.8,1.55]
[1757306239431,2.52258023,878.27,875.8,1.55]
[1757306240031,1.00913588,877.22,875.8,1.55]
[1757306240633,1.00913588,877.2,875.8,1.55]
[1757306241530,0.80913588,877.2,875.8,1.55]
[1757306242234,0.60913588,877.2,875.8,1.55]
[1757306242530,2.52258023,878.2,875.8,1.55]
[1757306243035,2.52258023,878.38,875.8,1.55]
[1757306244030,2.52258023,878.51,875.8,1.55]
[1757306244635,2.52258023,878.46,875.8,1.55]
[1757306245037,2.52258023,878.47,875.8,1.55]
[1757306246137,2.52258023,878.39,875.8,1.55]
[1757306246637,2.52258023,878.38,875.8,1.55]
[1757306247734,2.52258023,878.52,875.8,1.55]
[1757306248139,2.52258023,878.61,875.8,1.55]
[1757306248740,2.52258023,878.6,875.8,1.55]
[1757306250241,2.52258023,878.58,875.8,1.55]
[1757306250437,2.52258023,878.58,875.8,2.5660981]
[1757306250641,2.52258023,878.66,875.8,2.5660981]
[1757306250942,2.52258023,878.66,875.83,1.0160981]
[1757306251241,2.52258023,878.55,875.84,1.0160981]
[1757306251438,2.52258023,878.55,875.83,1.0160981]
[1757306252138,2.52258023,878.55,875.84,1.0160981]
[1757306252338,2.52258023,878.55,875.83,1.0160981]
[1757306252638,2.52258023,878.55,875.8,1.55]
[1757306252842,2.52258023,878.4,875.8,1.55]
[1757306253943,2.32258023,878.26,875.8,1.55]
[1757306254438,1.51300356,877.49,875.8,1.55]
[1757306255341,1.31300356,877.49,875.8,1.55]
[1757306256142,2.32258023,878.26,875.8,1.55]
[1757306256642,3.53327199,878.64,875.8,1.55]
[1757306256841,3.53327199,878.57,875.8,1.55]
[1757306257843,3.53327199,878.83,875.8,1.55]
[1757306258137,1.13688619,878.82,875.8,1.55]
[1757306258342,1.13688619,878.81,875.8,1.55]
[1757306258642,1.13688619,878.8,875.8,1.55]
[1757306258939,1.13690837,878.79,875.8,1.55]
[1757306259144,1.13690837,878.78,875.8,1.55]
[1757306259343,1.13690837,878.77,875.8,1.55]
[1757306259544,1.13690837,878.76,875.8,1.55]